[Event "55th Rubinstein Memorial-B 2019"]
[Site "Polanica-Zdroj"]
[Date "2019.08.19"]
[Round "3.2"]
[White "Shilov, Sergej"]
[Black "Czuchnicki, Jan"]
[Result "1-0"]
[ECO "E84"]
[WhiteElo "2129"]
[BlackElo "1849"]
[Annotator "NA"]
[PlyCount "71"]
[EventDate "2019.08.17"]
[EventType "swiss"]
[EventCountry "POL"]
[SourceTitle "playchess.com"]
[Source "ChessBase"]
[SourceQuality "1"]
[TimeControl "40/5400+30:1800+30"]

1. d4 {[%emt 0:00:00]} Nf6 {[%emt 0:00:00]} 2. c4 {[%emt 0:00:02]} g6 {[%emt 0:00:14]} 3. Nc3 {[%emt 0:00:07]} Bg7 {[%emt 0:00:07]} 4. e4 {[%emt 0:00:06]} d6 {[%emt 0:00:07]} 5. f3 {[%emt 0:00:17]} O-O {[%emt 0:00:19]} 6. Be3 {[%emt 0:00:09]} a6 {[%emt 0:00:49]} 7. Qd2 {[%emt 0:05:20]} Nc6 {[%emt 0:00:11]} 8. Nge2 {[%emt 0:03:33]} Rb8 {[%emt 0:00:18]} 9. g4 {[%emt 0:06:26]} b5 {[%emt 0:03:37]} 10. Bh6 {[%emt 0:12:25]} e5 {[%emt 0:06:13]} 11. Bxg7 {[%emt 0:01:34]} Kxg7 {[%emt 0:00:25]} 12. d5 {[%emt 0:00:21]} Ne7 {[%emt 0:03:29]} 13. Ng3 {[%emt 0:01:34]} b4 {[%emt 0:02:03]} 14. Nd1 {[%emt 0:01:13]} Nd7 {[%emt 0:01:47]} 15. h4 {[%emt 0:01:55]} h6 {[%emt 0:01:42]} 16. Nf2 {[%emt 0:03:09]} Nc5 {[%emt 0:01:02]} 17. Nd3 {[%emt 0:00:26]} Nxd3+ {[%emt 0:03:19]} 18. Bxd3 {[%emt 0:00:07]} c6 {[%emt 0:00:10]} 19. O-O-O {[%emt 0:01:41]} Qb6 {[%emt 0:01:11]} 20. Rdg1 {[%emt 0:03:09]} Rh8 {[%emt 0:02:09]} 21. g5 {[%emt 0:02:51]} h5 {[%emt 0:01:31]} 22. f4 {[%emt 0:00:25]} Bg4 {[%emt 0:05:19]} 23. Rf1 {[%emt 0:04:08]} Rhf8 {[%emt 0:07:21]} 24. Kb1 {[%emt 0:09:36]} a5 {[%emt 0:08:34]} 25. Be2 {[%emt 0:05:05]} Bd7 {[%emt 0:04:38]} 26. fxe5 {[%emt 0:02:07]} dxe5 {[%emt 0:00:13]} 27. Bxh5 {[%emt 0:00:35]} cxd5 {[%emt 0:01:31]} 28. cxd5 {[%emt 0:00:55]} a4 {[%emt 0:04:46]} 29. Rf6 {[%emt 0:04:18]} Qa7 {[%emt 0:01:58]} 30. Be2 {[%emt 0:01:37]} a3 {[%emt 0:01:53]} 31. b3 {[%emt 0:00:17]} Ng8 {[%emt 0:01:16]} 32. Rff1 {[%emt 0:01:19]} Qc5 {[%emt 0:00:18]} 33. Bc4 {[%emt 0:00:59]} Ne7 {[%emt 0:04:25]} 34. h5 {[%emt 0:02:24]} Rbe8 {[%emt 0:02:05]} 35. Qh2 {[%emt 0:05:36]} Rh8 {[%emt 0:01:50]} 36. d6 1-0

[Event "55th Rubinstein Memorial-B 2019"]
[Site "Polanica-Zdroj"]
[Date "2019.08.19"]
[Round "3.4"]
[White "Kozlowski, Janusz"]
[Black "Drazek, Wladyslaw"]
[Result "1-0"]
[ECO "B17"]
[WhiteElo "1781"]
[BlackElo "1864"]
[Annotator "NA"]
[PlyCount "101"]
[EventDate "2019.08.17"]
[EventType "swiss"]
[EventCountry "POL"]
[SourceTitle "playchess.com"]
[Source "ChessBase"]
[SourceQuality "1"]
[TimeControl "40/5400+30:1800+30"]

1. e4 {[%emt 0:00:00]} c6 {[%emt 0:00:00]} 2. d4 {[%emt 0:00:32]} d5 {[%emt 0:00:00]} 3. Nd2 {[%emt 0:00:39]} dxe4 {[%emt 0:00:21]} 4. Nxe4 {[%emt 0:00:11]} Nd7 {[%emt 0:00:31]} 5. Nf3 {[%emt 0:00:30]} Ndf6 {[%emt 0:00:28]} 6. Ng3 {[%emt 0:00:53]} e6 {[%emt 0:00:51]} 7. Bd3 {[%emt 0:01:06]} Bd6 {[%emt 0:00:16]} 8. c3 {[%emt 0:00:22]} Ne7 {[%emt 0:00:16]} 9. O-O {[%emt 0:02:11]} Ng6 {[%emt 0:00:22]} 10. Bg5 {[%emt 0:02:14]} Be7 {[%emt 0:04:33]} 11. Qc2 {[%emt 0:03:39]} Nd5 {[%emt 0:00:25]} 12. Bxe7 {[%emt 0:00:25]} Qxe7 {[%emt 0:00:27]} 13. Rfe1 {[%emt 0:00:36]} O-O {[%emt 0:00:56]} 14. h4 {[%emt 0:07:32]} Rd8 {[%emt 0:02:44]} 15. h5 {[%emt 0:00:41]} Nf8 {[%emt 0:00:12]} 16. Rad1 {[%emt 0:02:06]} Qc7 {[%emt 0:03:11]} 17. Ne5 {[%emt 0:03:36]} b6 {[%emt 0:02:26]} 18. Qc1 {[%emt 0:01:08]} f6 {[%emt 0:02:37]} 19. Nf3 {[%emt 0:03:23]} Bd7 {[%emt 0:01:54]} 20. h6 {[%emt 0:00:33]} g6 {[%emt 0:00:27]} 21. Bb1 {[%emt 0:02:56]} Qf4 {[%emt 0:00:43]} 22. Qxf4 {[%emt 0:00:16]} Nxf4 {[%emt 0:02:29]} 23. Ne4 {[%emt 0:00:45]} Kf7 {[%emt 0:03:53]} 24. c4 {[%emt 0:05:28]} Ke7 {[%emt 0:02:56]} 25. g3 {[%emt 0:01:29]} Nh5 {[%emt 0:00:49]} 26. g4 {[%emt 0:01:00]} Nf4 {[%emt 0:00:26]} 27. g5 {[%emt 0:00:05]} Nh3+ {[%emt 0:01:31]} 28. Kh2 {[%emt 0:00:43]} Nxg5 {[%emt 0:00:21]} 29. Nexg5 {[%emt 0:00:21]} fxg5 {[%emt 0:00:13]} 30. Nxg5 {[%emt 0:00:49]} b5 {[%emt 0:05:03]} 31. cxb5 {[%emt 0:05:58]} cxb5 {[%emt 0:00:02]} 32. d5 {[%emt 0:00:02]} Bc8 {[%emt 0:03:36]} 33. Re3 {[%emt 0:06:39]} Kf6 {[%emt 0:04:48]} 34. Ne4+ {[%emt 0:00:28]} Ke5 {[%emt 0:02:01]} 35. Nc3+ {[%emt 0:01:12]} Kf6 {[%emt 0:01:36]} 36. Rf3+ {[%emt 0:01:34]} Kg5 {[%emt 0:00:39]} 37. Nxb5 {[%emt 0:01:38]} exd5 38. Nc7 Rb8 {[%emt 0:02:55]} 39. Rxd5+ {[%emt 0:00:40]} Rxd5 40. Nxd5 Bb7 {[%emt 0:04:46]} 41. Rb3 {[%emt 0:31:11]} Rd8 {[%emt 0:33:29]} 42. Rxb7 {[%emt 0:00:44]} Rxd5 {[%emt 0:00:00]} 43. Rxa7 {[%emt 0:00:00]} Kxh6 {[%emt 0:00:00]} 44. Kg3 {[%emt 0:00:00]} Ne6 {[%emt 0:00:00]} 45. b4 {[%emt 0:00:00]} Kg5 {[%emt 0:00:00]} 46. Rxh7 {[%emt 0:00:00]} Rd4 {[%emt 0:00:00]} 47. Rb7 {[%emt 0:00:00]} Rd1 {[%emt 0:00:00]} 48. Be4 {[%emt 0:00:00]} Kf6 {[%emt 0:00:00]} 49. a4 {[%emt 0:00:00]} Rd4 {[%emt 0:00:00]} 50. f3 {[%emt 0:00:00]} g5 {[%emt 0:00:00]} 51. a5 {[%emt 0:00:00]} 1-0

[Event "55th Rubinstein Memorial-B 2019"]
[Site "Polanica-Zdroj"]
[Date "2019.08.19"]
[Round "3.5"]
[White "Idesis, Yaacov"]
[Black "Galyga, Jozef"]
[Result "1/2-1/2"]
[ECO "A13"]
[WhiteElo "1856"]
[BlackElo "1754"]
[Annotator "NA"]
[PlyCount "85"]
[EventDate "2019.08.17"]
[EventType "swiss"]
[EventCountry "POL"]
[SourceTitle "playchess.com"]
[Source "ChessBase"]
[SourceQuality "1"]
[TimeControl "40/5400+30:1800+30"]

1. c4 e6 2. Nc3 f5 3. g3 Nf6 4. Bg2 Be7 5. e3 O-O 6. Nge2 d5 7. cxd5 exd5 8. d4 c6 9. O-O Bd6 10. a3 a5 11. Qc2 Na6 12. Bd2 Kh8 13. Rae1 Nc7 14. Na4 Ne6 15. Nc5 Qe7 16. b4 axb4 17. axb4 Ng5 18. Ra1 Rxa1 19. Rxa1 Nge4 20. Be1 Ng4 21. Ra3 Qg5 22. Nf4 Qh6 23. h3 g5 24. hxg4 gxf4 25. exf4 fxg4 26. Re3 Qg6 27. Nxe4 dxe4 28. Bxe4 Bf5 29. Bc3 Bxe4 30. Qxe4 Qxe4 31. Rxe4 Kg8 32. Re6 Rd8 33. Kg2 Bf8 34. f3 gxf3+ 35. Kxf3 Kf7 36. f5 Ra8 37. Re3 Ra4 38. g4 Bxb4 39. Bb2 Be7 40. Rb3 Rb4 41. Rxb4 Bxb4 42. g5 Bd2 43. Kg4 1/2-1/2

[Event "55th Rubinstein Memorial-B 2019"]
[Site "Polanica-Zdroj"]
[Date "2019.08.19"]
[Round "3.6"]
[White "Margovsky, Naum"]
[Black "Kwiecien, Zbigniew"]
[Result "0-1"]
[ECO "E10"]
[WhiteElo "2002"]
[BlackElo "2024"]
[Annotator "NA"]
[PlyCount "149"]
[EventDate "2019.08.17"]
[EventType "swiss"]
[EventCountry "POL"]
[SourceTitle "playchess.com"]
[Source "ChessBase"]
[SourceQuality "1"]
[TimeControl "40/5400+30:1800+30"]

1. d4 Nf6 2. c4 e6 3. Nf3 d5 4. g3 c6 5. b3 Be7 6. Bg2 O-O 7. O-O Re8 8. Bb2 Nbd7 9. Nbd2 Nf8 10. Qc2 h6 11. Rad1 Bd6 12. Ne5 N6d7 13. f4 f6 14. Nd3 f5 15. Ne5 Nf6 16. c5 Bb8 17. h3 g5 18. e3 Re7 19. Kh2 Rg7 20. Rg1 g4 21. h4 Nh5 22. Bf1 Bxe5 23. dxe5 Ng6 24. Be2 Nxh4 25. Rh1 Bd7 26. Nf1 Nf3+ 27. Kg2 Be8 28. Bxf3 gxf3+ 29. Kxf3 Rg4 30. Rh3 Ng7 31. Qh2 h5 32. Bc3 Qe7 33. Bd4 a5 34. Rb1 b6 35. cxb6 c5 36. b7 Qxb7 37. Bxc5 d4+ 38. Kf2 Qe4 39. Rc1 Rc8 40. exd4 Bc6 41. Rc3 Qb1 42. Kg1 Bb5 43. Rf3 Bc6 44. Re3 Bb5 45. Qf2 Bxf1 46. Qxf1 Qxf1+ 47. Kxf1 Kf7 48. Rh2 Rh8 49. a3 h4 50. Rf3 Nh5 51. gxh4 Nxf4 52. b4 axb4 53. Bxb4 Nh5 54. Rd3 Nf4 55. Rdd2 Nd5 56. Bc5 Rhg8 57. Kf2 Nc3 58. Rc2 Rf4+ 59. Ke3 Nd5+ 60. Kd2 Rg3 61. Rb2 Ne3 62. Rb7+ Kg8 63. Kc1 Rf1+ 64. Kd2 f4 65. d5 Ra1 66. Bxe3 Ra2+ 67. Kd1 Rxh2 68. Bc5 Rd3+ 69. Kc1 Rxd5 70. Bd6 f3 71. Rb8+ Kh7 72. Rf8 f2 73. Rf7+ Kg6 74. Rf6+ Kh5 75. Rf8 0-1

[Event "55th Rubinstein Memorial-B 2019"]
[Site "Polanica-Zdroj"]
[Date "2019.08.20"]
[Round "4.1"]
[White "Janocha, Wieslaw"]
[Black "Shilov, Sergej"]
[Result "1-0"]
[ECO "B06"]
[WhiteElo "2264"]
[BlackElo "2129"]
[Annotator "NA"]
[PlyCount "57"]
[EventDate "2019.08.17"]
[EventType "swiss"]
[EventCountry "POL"]
[SourceTitle "playchess.com"]
[Source "ChessBase"]
[SourceQuality "1"]
[TimeControl "40/5400+30:1800+30"]

1. e4 {[%emt 0:00:10]} g6 {[%emt 0:01:41]} 2. d4 {[%emt 0:00:48]} Bg7 {[%emt 0:00:06]} 3. Nc3 {[%emt 0:02:49]} d6 {[%emt 0:01:20]} 4. f4 {[%emt 0:00:16]} d5 {[%emt 0:06:46]} 5. e5 {[%emt 0:03:15]} h5 {[%emt 0:00:09]} 6. Nf3 {[%emt 0:01:10]} Bg4 {[%emt 0:04:27]} 7. Be3 {[%emt 0:01:06]} e6 {[%emt 0:02:22]} 8. h3 {[%emt 0:02:49]} Bxf3 {[%emt 0:01:52]} 9. Qxf3 {[%emt 0:00:04]} Nh6 {[%emt 0:01:00]} 10. Bf2 {[%emt 0:02:57]} h4 {[%emt 0:01:50]} 11. Bd3 {[%emt 0:02:38]} Nd7 {[%emt 0:00:55]} 12. O-O {[%emt 0:02:48]} c6 {[%emt 0:02:58]} 13. b3 {[%emt 0:03:24]} Bf8 {[%emt 0:06:25]} 14. Ne2 {[%emt 0:01:34]} Nf5 {[%emt 0:03:49]} 15. c4 {[%emt 0:01:20]} Ba3 {[%emt 0:01:38]} 16. Rab1 {[%emt 0:00:53]} Be7 {[%emt 0:07:41]} 17. Rfc1 {[%emt 0:03:58]} Kf8 {[%emt 0:02:21]} 18. Rc2 {[%emt 0:02:14]} Kg7 {[%emt 0:00:31]} 19. Kh2 {[%emt 0:02:12]} Rc8 {[%emt 0:03:40]} 20. cxd5 {[%emt 0:06:21]} cxd5 {[%emt 0:00:16]} 21. Rxc8 {[%emt 0:00:09]} Qxc8 {[%emt 0:00:15]} 22. Rc1 {[%emt 0:00:02]} Qd8 {[%emt 0:00:28]} 23. Bxf5 {[%emt 0:00:44]} gxf5 {[%emt 0:00:26]} 24. Qc3 {[%emt 0:00:15]} Ba3 {[%emt 0:16:12]} 25. Rc2 {[%emt 0:05:22]} Qb6 {[%emt 0:01:51]} 26. Ng1 {[%emt 0:03:28]} Nb8 {[%emt 0:00:49]} 27. Nf3 {[%emt 0:00:25]} Be7 {[%emt 0:00:23]} 28. Qc7 {[%emt 0:00:51]} Nc6 {[%emt 0:00:19]} 29. Rxc6 {[%emt 0:00:15]} 1-0

[Event "55th Rubinstein Memorial-B 2019"]
[Site "Polanica-Zdroj"]
[Date "2019.08.20"]
[Round "4.2"]
[White "Marszk, Kazimierz"]
[Black "Kozlowski, Janusz"]
[Result "1-0"]
[ECO "C42"]
[WhiteElo "1829"]
[BlackElo "1781"]
[Annotator "NA"]
[PlyCount "89"]
[EventDate "2019.08.17"]
[EventType "swiss"]
[EventCountry "POL"]
[SourceTitle "playchess.com"]
[Source "ChessBase"]
[SourceQuality "1"]
[TimeControl "40/5400+30:1800+30"]

1. e4 {[%emt 0:00:00]} e5 {[%emt 0:00:00]} 2. Nf3 {[%emt 0:00:00]} Nf6 {[%emt 0:00:00]} 3. Nc3 {[%emt 0:00:11]} Bb4 {[%emt 0:00:52]} 4. d3 {[%emt 0:00:42]} d5 {[%emt 0:01:54]} 5. exd5 {[%emt 0:00:20]} Nxd5 {[%emt 0:00:45]} 6. Bd2 {[%emt 0:00:09]} Nc6 {[%emt 0:00:55]} 7. Be2 {[%emt 0:00:39]} O-O {[%emt 0:00:35]} 8. O-O {[%emt 0:01:30]} Bxc3 {[%emt 0:00:28]} 9. bxc3 {[%emt 0:00:20]} Bg4 {[%emt 0:02:30]} 10. h3 {[%emt 0:00:57]} Bh5 {[%emt 0:00:13]} 11. Rb1 {[%emt 0:09:23]} b6 {[%emt 0:00:58]} 12. c4 {[%emt 0:09:23]} Nf4 {[%emt 0:00:50]} 13. Bxf4 {[%emt 0:01:04]} exf4 {[%emt 0:00:03]} 14. Rb5 {[%emt 0:01:43]} Bg6 {[%emt 0:04:27]} 15. Qa1 {[%emt 0:11:18]} Re8 {[%emt 0:04:53]} 16. Re1 {[%emt 0:03:36]} Re6 {[%emt 0:03:01]} 17. d4 {[%emt 0:11:31]} Qe7 {[%emt 0:04:01]} 18. Kf1 {[%emt 0:05:29]} Re8 {[%emt 0:01:04]} 19. Qd1 {[%emt 0:05:55]} a6 {[%emt 0:01:57]} 20. Rb3 {[%emt 0:04:43]} Nb4 {[%emt 0:04:24]} 21. Rb2 {[%emt 0:00:34]} Bh5 {[%emt 0:00:36]} 22. d5 {[%emt 0:09:13]} Re4 {[%emt 0:01:58]} 23. c3 {[%emt 0:01:38]} Bxf3 {[%emt 0:00:34]} 24. gxf3 {[%emt 0:04:25]} Re5 {[%emt 0:00:12]} 25. Kg2 {[%emt 0:01:44]} Qh4 {[%emt 0:01:16]} 26. Rh1 {[%emt 0:00:39]} Qg5+ {[%emt 0:03:44]} 27. Kf1 {[%emt 0:01:32]} Nxd5 {[%emt 0:00:14]} 28. cxd5 {[%emt 0:00:45]} Rxd5 {[%emt 0:00:03]} 29. Rd2 {[%emt 0:00:24]} Red8 {[%emt 0:00:29]} 30. Rxd5 {[%emt 0:00:39]} Rxd5 {[%emt 0:00:04]} 31. Qc1 {[%emt 0:02:26]} Ra5 {[%emt 0:01:18]} 32. Bc4 {[%emt 0:01:51]} Rc5 {[%emt 0:02:30]} 33. Qe1 {[%emt 0:01:46]} Kf8 {[%emt 0:00:26]} 34. Bd3 {[%emt 0:04:09]} Qd5 {[%emt 0:00:37]} 35. Qe4 {[%emt 0:01:20]} Qxa2 {[%emt 0:00:25]} 36. Qxh7 {[%emt 0:00:58]} Rxc3 {[%emt 0:00:20]} 37. Kg2 {[%emt 0:00:36]} Qd5 {[%emt 0:04:02]} 38. Qh8+ {[%emt 0:00:42]} Ke7 {[%emt 0:00:06]} 39. Re1+ {[%emt 0:00:16]} Kf6 {[%emt 0:00:26]} 40. Be4 {[%emt 0:00:00]} Qg5+ {[%emt 0:00:00]} 41. Kh2 {[%emt 0:01:12]} Qc5 {[%emt 0:01:28]} 42. Rg1 {[%emt 0:01:04]} Ke7 {[%emt 0:01:26]} 43. Qh4+ {[%emt 0:01:11]} Ke8 {[%emt 0:00:56]} 44. Rxg7 {[%emt 0:00:43]} f5 {[%emt 0:01:24]} 45. Qh5+ {[%emt 0:00:59]} 1-0

[Event "55th Rubinstein Memorial-B 2019"]
[Site "Polanica-Zdroj"]
[Date "2019.08.20"]
[Round "4.3"]
[White "Galyga, Jozef"]
[Black "Klimaszewski, Dariusz"]
[Result "1/2-1/2"]
[ECO "A05"]
[WhiteElo "1754"]
[BlackElo "2152"]
[Annotator "NA"]
[PlyCount "83"]
[EventDate "2019.08.17"]
[EventType "swiss"]
[EventCountry "POL"]
[SourceTitle "playchess.com"]
[Source "ChessBase"]
[SourceQuality "1"]
[TimeControl "40/5400+30:1800+30"]

1. Nf3 Nf6 2. b3 g6 3. Bb2 Bg7 4. e3 O-O 5. Be2 d6 6. O-O e5 7. d3 Nc6 8. Nbd2 Ne8 9. d4 exd4 10. exd4 Ne7 11. Re1 Nf5 12. Nf1 d5 13. Ne5 Ned6 14. c4 Be6 15. c5 Nc8 16. Bd3 Nce7 17. g4 Nh4 18. Ng3 Nc6 19. f4 Nxe5 20. dxe5 f5 21. g5 h6 22. gxh6 Bxh6 23. Rf1 Kh7 24. Bd4 Rg8 25. Kh1 Qe7 26. Qe2 c6 27. Rf2 Rh8 28. b4 a6 29. a4 Kg7 30. Rg1 Kf8 31. Rb1 Kg7 32. Rg1 Kh7 33. Qc2 Rhf8 34. Qb1 Rf7 35. Qc2 Rg8 36. Qb1 Ra8 37. Qc2 Kh8 38. Qb1 Rh7 39. Qc2 Bg7 40. Qb1 Rf8 41. Qd1 g5 42. Nh5 1/2-1/2

[Event "55th Rubinstein Memorial-B 2019"]
[Site "Polanica-Zdroj"]
[Date "2019.08.20"]
[Round "4.4"]
[White "Kwiecien, Zbigniew"]
[Black "Idesis, Yaacov"]
[Result "1/2-1/2"]
[ECO "B15"]
[WhiteElo "2024"]
[BlackElo "1856"]
[Annotator "NA"]
[PlyCount "81"]
[EventDate "2019.08.17"]
[EventType "swiss"]
[EventCountry "POL"]
[SourceTitle "playchess.com"]
[Source "ChessBase"]
[SourceQuality "1"]
[TimeControl "40/5400+30:1800+30"]

1. e4 {[%emt 0:00:00]} c6 {[%emt 0:00:00]} 2. d4 {[%emt 0:00:11]} d5 {[%emt 0:00:00]} 3. Nd2 {[%emt 0:00:16]} dxe4 {[%emt 0:00:00]} 4. Nxe4 {[%emt 0:00:17]} Nf6 {[%emt 0:00:00]} 5. Ng3 {[%emt 0:00:32]} e5 {[%emt 0:00:11]} 6. N1e2 {[%emt 0:06:20]} Be7 {[%emt 0:01:45]} 7. Be3 {[%emt 0:02:52]} Ng4 {[%emt 0:01:22]} 8. Qd2 {[%emt 0:01:37]} Nxe3 {[%emt 0:00:36]} 9. Qxe3 {[%emt 0:04:01]} exd4 {[%emt 0:01:16]} 10. Nxd4 {[%emt 0:00:28]} O-O 11. Be2 {[%emt 0:08:49]} Re8 {[%emt 0:01:20]} 12. Qd3 {[%emt 0:07:46]} Bf6 {[%emt 0:02:17]} 13. O-O-O {[%emt 0:01:20]} Qd5 {[%emt 0:03:10]} 14. Kb1 {[%emt 0:11:13]} Qxg2 {[%emt 0:00:47]} 15. Ndf5 {[%emt 0:11:54]} Nd7 {[%emt 0:01:56]} 16. Rhg1 {[%emt 0:03:53]} Qxf2 {[%emt 0:02:58]} 17. Nh5 {[%emt 0:00:28]} Qxe2 {[%emt 0:08:58]} 18. Nfxg7 {[%emt 0:18:41]} Qxd3 {[%emt 0:06:23]} 19. Nxe8+ {[%emt 0:04:00]} Qg6 {[%emt 0:00:54]} 20. Nexf6+ {[%emt 0:00:21]} Kf8 {[%emt 0:06:52]} 21. Rxg6 {[%emt 0:00:54]} hxg6 {[%emt 0:01:08]} 22. Nxd7+ {[%emt 0:00:14]} Bxd7 {[%emt 0:00:29]} 23. Rxd7 {[%emt 0:00:14]} Re8 {[%emt 0:00:59]} 24. Kc1 {[%emt 0:00:33]} gxh5 {[%emt 0:00:09]} 25. Rxb7 {[%emt 0:00:06]} Re2 {[%emt 0:04:01]} 26. Rxa7 {[%emt 0:01:57]} Rxh2 {[%emt 0:00:08]} 27. a4 {[%emt 0:00:19]} Rf2 {[%emt 0:03:24]} 28. Rd7 {[%emt 0:04:14]} h4 {[%emt 0:10:16]} 29. Rd3 {[%emt 0:00:13]} Ke7 {[%emt 0:02:29]} 30. a5 {[%emt 0:00:16]} Rf1+ {[%emt 0:03:57]} 31. Kd2 {[%emt 0:00:11]} Ra1 {[%emt 0:00:32]} 32. Rh3 {[%emt 0:01:56]} Rxa5 {[%emt 0:00:22]} 33. Rxh4 {[%emt 0:00:10]} f5 {[%emt 0:00:46]} 34. Rh6 {[%emt 0:00:34]} Kd7 {[%emt 0:00:21]} 35. Kd3 {[%emt 0:00:31]} Re5 {[%emt 0:00:48]} 36. b4 {[%emt 0:01:53]} Rb5 {[%emt 0:02:11]} 37. c3 {[%emt 0:00:42]} Rd5+ {[%emt 0:00:46]} 38. Ke3 {[%emt 0:00:29]} Rd1 {[%emt 0:03:58]} 39. Rf6 {[%emt 0:00:37]} Rf1 {[%emt 0:00:00]} 40. Ke2 {[%emt 0:00:00]} Rf4 {[%emt 0:00:00]} 41. Ke3 {[%emt 0:00:07]} 1/2-1/2

[Event "55th Rubinstein Memorial-B 2019"]
[Site "Polanica-Zdroj"]
[Date "2019.08.20"]
[Round "4.5"]
[White "Wasylkiewicz, Andrzej"]
[Black "Fainberg, Boris"]
[Result "1/2-1/2"]
[ECO "B26"]
[WhiteElo "1752"]
[BlackElo "2030"]
[Annotator "NA"]
[PlyCount "110"]
[EventDate "2019.08.17"]
[EventType "swiss"]
[EventCountry "POL"]
[SourceTitle "playchess.com"]
[Source "ChessBase"]
[SourceQuality "1"]
[TimeControl "40/5400+30:1800+30"]

1. e4 {[%emt 0:00:00]} c5 {[%emt 0:01:15]} 2. Nc3 {[%emt 0:00:00]} Nc6 {[%emt 0:00:20]} 3. g3 {[%emt 0:00:07]} g6 {[%emt 0:00:25]} 4. Bg2 {[%emt 0:00:17]} Bg7 {[%emt 0:00:09]} 5. d3 {[%emt 0:00:49]} d6 {[%emt 0:00:38]} 6. Be3 {[%emt 0:01:39]} Rb8 {[%emt 0:06:57]} 7. Qd2 {[%emt 0:00:34]} Nd4 {[%emt 0:05:38]} 8. Nd1 {[%emt 0:04:17]} Nf6 {[%emt 0:07:28]} 9. f3 {[%emt 0:04:23]} O-O {[%emt 0:03:28]} 10. c3 {[%emt 0:00:09]} Nc6 {[%emt 0:00:17]} 11. Ne2 {[%emt 0:04:44]} b6 {[%emt 0:11:17]} 12. d4 {[%emt 0:04:17]} cxd4 {[%emt 0:01:06]} 13. cxd4 {[%emt 0:02:56]} Ba6 {[%emt 0:01:18]} 14. Ndc3 {[%emt 0:01:17]} Qd7 {[%emt 0:08:02]} 15. a3 {[%emt 0:01:41]} Na5 {[%emt 0:01:37]} 16. Qd1 {[%emt 0:05:27]} d5 {[%emt 0:08:03]} 17. e5 {[%emt 0:01:50]} Ne8 {[%emt 0:00:07]} 18. O-O {[%emt 0:04:08]} e6 {[%emt 0:05:56]} 19. b3 {[%emt 0:04:57]} Nc7 {[%emt 0:01:34]} 20. a4 {[%emt 0:02:05]} Rfc8 {[%emt 0:01:57]} 21. Re1 {[%emt 0:01:23]} Bf8 {[%emt 0:00:43]} 22. Bd2 {[%emt 0:01:12]} Nc6 {[%emt 0:06:42]} 23. Be3 {[%emt 0:05:39]} Nb4 {[%emt 0:02:44]} 24. Nf4 {[%emt 0:01:52]} Ne8 {[%emt 0:01:16]} 25. Qd2 {[%emt 0:03:37]} Rc6 {[%emt 0:01:34]} 26. Rec1 {[%emt 0:01:55]} Rbc8 {[%emt 0:00:54]} 27. Bf1 {[%emt 0:02:51]} Bxf1 {[%emt 0:00:39]} 28. Kxf1 {[%emt 0:00:15]} Qb7 {[%emt 0:05:10]} 29. Nfe2 {[%emt 0:02:42]} Qa6 {[%emt 0:01:19]} 30. Nb5 {[%emt 0:02:07]} Rc2 {[%emt 0:00:43]} 31. Rxc2 {[%emt 0:00:53]} Rxc2 {[%emt 0:00:03]} 32. Qd1 {[%emt 0:01:25]} Qb7 {[%emt 0:02:04]} 33. Nbc3 {[%emt 0:05:35]} Nc7 {[%emt 0:03:58]} 34. Bd2 {[%emt 0:02:41]} Qa6 {[%emt 0:04:22]} 35. Nb5 {[%emt 0:08:55]} Nxb5 {[%emt 0:00:20]} 36. axb5 {[%emt 0:04:24]} Qxb5 {[%emt 0:01:44]} 37. Bxb4 {[%emt 0:00:44]} Rxe2 {[%emt 0:00:09]} 38. Qxe2 {[%emt 0:00:16]} Qxb4 {[%emt 0:00:09]} 39. Qd3 {[%emt 0:02:56]} a5 {[%emt 0:00:17]} 40. Ra4 {[%emt 0:00:00]} Qe7 {[%emt 0:00:00]} 41. f4 {[%emt 0:02:20]} Qc7 {[%emt 0:01:36]} 42. Ra1 {[%emt 0:01:25]} Bb4 {[%emt 0:02:01]} 43. g4 {[%emt 0:01:51]} Qc6 {[%emt 0:01:44]} 44. h4 {[%emt 0:04:52]} b5 {[%emt 0:01:15]} 45. h5 {[%emt 0:00:57]} Bc3 {[%emt 0:03:42]} 46. Rc1 {[%emt 0:01:22]} b4 {[%emt 0:00:00]} 47. f5 {[%emt 0:04:05]} exf5 {[%emt 0:05:22]} 48. gxf5 {[%emt 0:01:51]} gxf5 {[%emt 0:02:51]} 49. Qg3+ {[%emt 0:00:51]} Kf8 {[%emt 0:02:55]} 50. Qg5 {[%emt 0:00:32]} Qa6+ {[%emt 0:04:44]} 51. Kg1 {[%emt 0:05:37]} Qd3 {[%emt 0:03:04]} 52. Qd8+ {[%emt 0:02:18]} Kg7 {[%emt 0:00:02]} 53. h6+ Kxh6 54. Qf8+ Kg6 55. Qg8+ Kh6 1/2-1/2

[Event "55th Rubinstein Memorial-B 2019"]
[Site "Polanica-Zdroj"]
[Date "2019.08.20"]
[Round "4.6"]
[White "Marusenko, Petr"]
[Black "Kolinski, Stanislaw"]
[Result "1-0"]
[ECO "D35"]
[WhiteElo "2124"]
[BlackElo "1755"]
[Annotator "NA"]
[PlyCount "79"]
[EventDate "2019.08.17"]
[EventType "swiss"]
[EventCountry "POL"]
[SourceTitle "playchess.com"]
[Source "ChessBase"]
[SourceQuality "1"]
[TimeControl "40/5400+30:1800+30"]

1. d4 d5 2. c4 e6 3. Nc3 Nf6 4. cxd5 exd5 5. Bg5 Nbd7 6. e3 c6 7. Bd3 Be7 8. Nf3 O-O 9. O-O Re8 10. Qc2 Ne4 11. Bxe4 dxe4 12. Nxe4 Bxg5 13. Nexg5 Nf8 14. Rfe1 h6 15. Ne4 Bf5 16. Nfd2 Ne6 17. Qc3 Nc7 18. Ng3 Nb5 19. Qc5 Be6 20. Nde4 Rc8 21. Nc3 b6 22. Qh5 Nd6 23. Rad1 b5 24. b3 b4 25. Na4 Nb5 26. Rc1 Re7 27. Rc5 Nxd4 28. h3 Bd5 29. Rd1 Bf3 30. Rxd4 Qxd4 31. Qxf3 Qa1+ 32. Kh2 Qxa2 33. Nf5 Re6 34. Qg4 g6 35. Nxh6+ Kf8 36. Qf4 Re7 37. Qf6 Ke8 38. Nxf7 Rcc7 39. Ne5 Rg7 40. Qe6+ 1-0